fUSD/lending_fUSD_20250916
["ID","MTS","AMOUNT","RATE_DAILY","PERIOD"]
[385824606,1758057067456,-400.0,0.00031506,6]
[385824607,1758057067465,-400.0,0.00031506,6]
[385824608,1758057067475,-400.0,0.00031506,6]
[385824609,1758057067485,-400.0,0.00031506,6]
[385824610,1758057067494,-400.0,0.00031506,6]
[385824611,1758057067503,-400.0,0.00031506,6]
[385824612,1758057067513,-400.0,0.00031506,6]
[385824613,1758057067522,-400.0,0.00031506,6]
[385824614,1758057067532,-400.0,0.00031506,6]
[385824615,1758057067544,-400.0,0.00031506,6]
[385824616,1758057067553,-400.0,0.00031506,6]
[385824617,1758057067563,-444.47,0.00031506,6]
[385824618,1758057067572,-400.0,0.00031506,6]
[385824619,1758057067582,-400.0,0.00031506,6]
[385824620,1758057067591,-400.0,0.00031506,6]
[385824621,1758057067601,-400.0,0.00031506,6]
[385824622,1758057067610,-453.56135918,0.00031506,6]
[385824623,1758057067626,-400.0,0.00031506,6]
[385824624,1758057067636,-400.0,0.00031506,6]
[385824625,1758057067645,-400.0,0.00031506,6]
[385824626,1758057067655,-400.0,0.00031506,6]
[385824627,1758057067665,-400.0,0.00031506,6]
[385824628,1758057067675,-400.0,0.00031506,6]
[385824629,1758057067685,-400.0,0.00031506,6]
[385824630,1758057067695,-400.0,0.00031506,6]
[385824631,1758057067704,-400.0,0.00031506,6]
[385824632,1758057067713,-400.0,0.00031506,6]
[385824633,1758057067723,-400.0,0.00031506,6]
[385824634,1758057067733,-538.45,0.00031506,6]
[385824635,1758057067742,-400.0,0.00031506,6]
[385824636,1758057067757,-400.0,0.00031506,6]
[385824637,1758057067766,-400.0,0.00031506,6]
[385824638,1758057067776,-400.0,0.00031506,6]
[385824639,1758057067786,-897.93,0.00031506,6]
[385824640,1758057067796,-400.39,0.00031506,6]
[385824641,1758057067805,-462.88030091,0.00031506,6]
[385824642,1758057067815,-477.46,0.00031506,6]
[385824643,1758057067825,-400.0,0.00031506,6]
[385824644,1758057067834,-400.0,0.00031506,6]
[385824645,1758057067844,-297.44077951,0.00031506,6]
[385824646,1758057067855,-400.0,0.00031506,6]
[385824647,1758057067865,-400.0,0.00031506,6]
[385824648,1758057067875,-400.0,0.00031506,6]
[385824649,1758057068093,-400.0,0.00031506,6]
[385824650,1758057068103,-400.0,0.00031506,6]
[385824651,1758057068114,-400.0,0.00031506,6]
[385824652,1758057068125,-400.0,0.00031506,6]
[385824653,1758057068135,-163.38280684,0.00031506,6]
[385824654,1758057068146,-400.0,0.00031506,6]
[385824655,1758057068156,-400.0,0.00031506,6]
[385824656,1758057068166,-420.75,0.00031506,6]
[385824657,1758057068176,-400.0,0.00031506,6]
[385824658,1758057068185,-400.0,0.00031506,6]
[385824659,1758057068195,-400.0,0.00031506,6]
[385824660,1758057068205,-400.0,0.00031506,6]
[385824661,1758057068215,-2152.72,0.00031506,6]
[385824662,1758057068225,-446.8,0.00031506,6]
[385824663,1758057068234,-400.0,0.00031506,6]
[385824664,1758057068245,-400.0,0.00031506,6]
[385824665,1758057068255,-400.0,0.00031506,6]
[385824666,1758057068264,-400.0,0.00031506,6]
[385824667,1758057068275,-400.0,0.00031506,6]
[385824668,1758057068623,-400.0,0.00031506,6]
[385824669,1758057068636,-400.0,0.00031506,6]
[385824670,1758057068645,-151.0,0.00031506,7]
[385824671,1758057068656,-400.0,0.00031506,6]
[385824672,1758057068666,-400.0,0.00031506,6]
[385824673,1758057068675,-400.0,0.00031506,6]
[385824674,1758057068685,-400.0,0.00031506,6]
[385824675,1758057068694,-400.0,0.00031506,6]
[385824676,1758057068704,-412.20858629,0.00031506,6]
[385824677,1758057068719,-364.81241133,0.00031506,6]
[385824678,1758057068733,-400.0,0.00031506,6]
[385824679,1758057068742,-400.0,0.00031506,6]
[385824680,1758057068752,-400.0,0.00031506,6]
[385824681,1758057068762,-400.0,0.00031506,6]
[385824682,1758057068772,-400.0,0.00031506,6]
[385824683,1758057068781,-400.0,0.00031506,6]
[385824684,1758057068791,-400.0,0.00031506,6]
[385824685,1758057068801,-400.0,0.00031506,6]
[385824686,1758057068810,-400.0,0.00031506,6]
[385824687,1758057068819,-414.26,0.00031506,6]
[385824688,1758057068829,-400.0,0.00031506,6]
[385824689,1758057068838,-285.9655276,0.00031506,6]
[385824690,1758057068847,-633.69,0.00031506,6]
[385824691,1758057068857,-400.0,0.00031506,6]
[385824692,1758057068866,-400.0,0.00031506,6]
[385824693,1758057068875,-400.0,0.00031506,6]
[385824694,1758057068885,-400.0,0.00031506,6]
[385824695,1758057068900,-400.0,0.00031506,6]
[385824696,1758057068910,-400.0,0.00031506,6]
[385824697,1758057068920,-400.0,0.00031506,6]
[385824698,1758057068929,-400.0,0.00031506,6]
[385824699,1758057068939,-400.0,0.00031506,6]
[385824700,1758057068950,-400.0,0.00031506,6]
[385824701,1758057068960,-400.0,0.00031506,6]
[385824702,1758057068970,-400.0,0.00031506,6]
[385824703,1758057068980,-488.35,0.00031506,6]
[385824704,1758057068989,-400.0,0.00031506,6]
[385824705,1758057068998,-400.0,0.00031506,6]
[385824706,1758057069008,-400.0,0.00031506,6]
[385824707,1758057069017,-400.0,0.00031506,6]
[385824708,1758057069026,-400.0,0.00031506,6]
[385824709,1758057069037,-379.97800286,0.00031506,6]
[385824710,1758057069046,-400.0,0.00031506,6]
[385824711,1758057069056,-400.0,0.00031506,6]
[385824712,1758057069066,-545.97517877,0.00031506,6]
[385824713,1758057069075,-636.75,0.00031506,6]
[385824714,1758057069085,-400.0,0.00031506,6]
[385824715,1758057069095,-400.0,0.00031506,6]
[385824716,1758057069104,-400.0,0.00031506,6]
[385824717,1758057069114,-400.0,0.00031506,6]
[385824718,1758057069123,-400.0,0.00031506,6]
[385824719,1758057069133,-400.0,0.00031506,6]
[385824720,1758057069143,-400.0,0.00031506,6]
[385824721,1758057069152,-605.63,0.00031506,6]
[385824722,1758057069162,-400.0,0.00031506,6]
[385824723,1758057069171,-400.0,0.00031506,6]
[385824724,1758057069181,-535.77,0.00031506,6]
[385824725,1758057069190,-400.0,0.00031506,6]
[385824726,1758057069199,-400.0,0.00031506,6]
[385824727,1758057069209,-400.0,0.00031506,6]
[385824728,1758057069219,-400.0,0.00031506,6]
[385824729,1758057069229,-400.0,0.00031506,6]
[385824730,1758057069238,-609.74,0.00031506,6]
[385824731,1758057069248,-400.0,0.00031506,6]
[385824732,1758057069258,-400.0,0.00031506,6]
[385824733,1758057069267,-400.0,0.00031506,6]
[385824734,1758057069277,-400.0,0.00031506,6]
[385824735,1758057069286,-470.05,0.00031506,6]
[385824736,1758057069296,-159.90573766,0.00031506,6]
[385824737,1758057069305,-713.21,0.00031506,6]
[385824738,1758057069315,-532.91158809,0.00031506,6]
[385824739,1758057069325,-545.98,0.00031506,6]
[385824740,1758057069334,-400.0,0.00031506,6]
[385824741,1758057069343,-400.0,0.00031506,6]
[385824742,1758057069353,-435.33,0.00031506,6]
[385824743,1758057069363,-1275.84,0.00031506,6]
[385824744,1758057069373,-400.0,0.00031506,6]
[385824745,1758057069382,-400.0,0.00031506,6]
[385824746,1758057069392,-400.0,0.00031506,6]
[385824747,1758057069402,-400.0,0.00031506,6]
[385824748,1758057069412,-400.0,0.00031506,6]
[385824749,1758057069421,-438.33520685,0.00031506,6]
[385824750,1758057069430,-1307.51,0.00031506,6]
[385824751,1758057069440,-400.0,0.00031506,6]
[385824752,1758057069450,-400.0,0.00031506,6]
[385824753,1758057069459,-400.0,0.00031506,6]
[385824754,1758057069469,-585.24,0.00031506,6]
[385824755,1758057069479,-400.0,0.00031506,6]
[385824756,1758057069488,-400.0,0.00031506,6]
[385824757,1758057069498,-400.0,0.00031506,6]
[385824758,1758057069508,-199.98118753,0.00031506,6]
[385824759,1758057069517,-2094.1,0.00031506,6]
[385824760,1758057069527,-400.0,0.00031506,6]
[385824761,1758057069536,-400.0,0.00031506,6]
[385824762,1758057069546,-432.42,0.00031506,6]
[385824763,1758057069555,-152.901062,0.00031506,7]
[385824764,1758057069565,-426.07,0.00031506,6]
[385824765,1758057069574,-807.22,0.00031506,6]
[385824766,1758057069584,-400.0,0.00031506,6]
[385824767,1758057069594,-450.81,0.00031506,6]
[385824768,1758057069604,-400.0,0.00031506,6]
[385824769,1758057069614,-1320.54,0.00031506,6]
[385824770,1758057069623,-400.0,0.00031506,6]
[385824771,1758057069633,-414.16470975,0.00031506,6]
[385824772,1758057069643,-400.0,0.00031506,6]
[385824773,1758057069653,-632.25,0.00031506,6]
[385824774,1758057069663,-400.0,0.00031506,6]
[385824775,1758057069674,-2034.04,0.00031506,6]
[385824776,1758057069683,-400.0,0.00031506,6]
[385824777,1758057069693,-400.0,0.00031506,6]
[385824778,1758057069703,-691.17,0.00031506,6]
[385824779,1758057069712,-400.0,0.00031506,6]
[385824780,1758057069722,-712.91,0.00031506,6]
[385824781,1758057069731,-400.0,0.00031506,6]
[385824782,1758057069741,-400.0,0.00031506,6]
[385824783,1758057069750,-400.0,0.00031506,6]
[385824784,1758057069759,-400.0,0.00031506,6]
[385824785,1758057069769,-531.95,0.00031506,6]
[385824786,1758057069779,-400.0,0.00031506,6]
[385824787,1758057069789,-400.0,0.00031506,6]
[385824788,1758057069798,-400.0,0.00031506,6]
[385824789,1758057069808,-400.0,0.00031506,6]
[385824790,1758057069817,-400.0,0.00031506,6]
[385824791,1758057069826,-400.0,0.00031506,6]
[385824792,1758057069836,-682.52,0.00031506,6]
[385824793,1758057069846,-400.0,0.00031506,6]
[385824794,1758057069856,-491.35184679,0.00031506,6]
[385824795,1758057069865,-668.63,0.00031506,6]
[385824796,1758057069874,-2182.91,0.00031506,6]
[385824797,1758057069884,-400.0,0.00031506,6]
[385824798,1758057069897,-400.0,0.00031506,6]
[385824799,1758057069907,-577.47,0.00031506,6]
[385824800,1758057069916,-400.0,0.00031506,6]
[385824801,1758057069926,-400.0,0.00031506,6]
[385824802,1758057069935,-400.0,0.00031506,6]
[385824803,1758057069945,-400.0,0.00031506,6]
[385824804,1758057069954,-400.0,0.00031506,6]
[385824805,1758057069963,-613.19,0.00031506,6]
[385824806,1758057069973,-409.76,0.00031506,6]
[385824807,1758057069982,-1251.89,0.00031506,6]
[385824808,1758057069992,-400.0,0.00031506,6]
[385824809,1758057070001,-400.0,0.00031506,6]
[385824810,1758057070011,-400.0,0.00031506,6]
[385824811,1758057070021,-1025.88,0.00031506,6]
[385824812,1758057070031,-400.0,0.00031506,6]
[385824813,1758057070040,-400.0,0.00031506,6]
[385824814,1758057070050,-924.97,0.00031506,6]
[385824815,1758057070060,-593.74,0.00031506,6]
[385824816,1758057070070,-605.66,0.00031506,6]
[385824817,1758057070080,-516.31,0.00031506,6]
[385824818,1758057070089,-400.0,0.00031506,6]
[385824819,1758057070099,-400.0,0.00031506,6]
[385824820,1758057070108,-400.0,0.00031506,6]
[385824821,1758057070118,-400.0,0.00031506,6]
[385824822,1758057070127,-400.0,0.00031506,6]
[385824823,1758057070137,-400.0,0.00031506,6]
[385824824,1758057070147,-400.0,0.00031506,6]
[385824825,1758057070156,-1014.87,0.00031506,6]
[385824826,1758057070166,-400.0,0.00031506,6]
[385824827,1758057070175,-524.6,0.00031506,6]
[385824828,1758057070184,-400.0,0.00031506,6]
[385824829,1758057070194,-493.11,0.00031506,6]
[385824830,1758057070203,-400.0,0.00031506,6]
[385824831,1758057070212,-412.98,0.00031506,6]
[385824832,1758057070222,-400.0,0.00031506,6]
[385824833,1758057070231,-588.1,0.00031506,6]
[385824834,1758057070240,-175.10183323,0.00031506,6]
[385824835,1758057070249,-400.0,0.00031506,6]
[385824836,1758057070259,-400.0,0.00031506,6]
[385824837,1758057070268,-529.64,0.00031506,6]
[385824838,1758057070277,-574.6,0.00031506,6]
[385824839,1758057070286,-436.67,0.00031506,6]
[385824840,1758057070296,-400.0,0.00031506,6]
[385824841,1758057070306,-400.0,0.00031506,6]
[385824842,1758057070315,-400.0,0.00031506,6]
[385824843,1758057070325,-983.68,0.00031506,6]
[385824844,1758057070335,-401.99716165,0.00031506,6]
[385824845,1758057070344,-410.54,0.00031506,6]
[385824846,1758057070353,-875.58,0.00031506,6]
[385824847,1758057070363,-400.0,0.00031506,6]
[385824848,1758057070372,-400.0,0.00031506,6]
[385824849,1758057070382,-457.79,0.00031506,6]
[385824850,1758057070391,-409.35,0.00031506,6]
[385824851,1758057070401,-400.0,0.00031506,6]
[385824852,1758057070411,-400.0,0.00031506,6]
[385824853,1758057070420,-791.37,0.00031506,6]
[385824854,1758057070429,-625.93,0.00031506,6]
[385824855,1758057070438,-400.0,0.00031506,6]
[385824856,1758057070448,-609.54,0.00031506,6]
[385824857,1758057070457,-510.33,0.00031506,6]
[385824858,1758057070466,-556.43,0.00031506,6]
[385824859,1758057070475,-745.45,0.00031506,6]
[385824860,1758057070485,-400.0,0.00031506,6]
[385824861,1758057070494,-400.0,0.00031506,6]
[385824862,1758057070504,-438.34,0.00031506,6]
[385824863,1758057070514,-400.0,0.00031506,6]
[385824864,1758057070523,-1260.15,0.00031506,6]
[385824865,1758057070533,-461.54,0.00031506,6]
[385824866,1758057070542,-636.26,0.00031506,6]
[385824867,1758057070551,-400.0,0.00031506,6]
[385824868,1758057070560,-400.0,0.00031506,6]
[385824869,1758057070569,-400.0,0.00031506,6]
[385824870,1758057070578,-479.5,0.00031506,6]
[385824871,1758057070587,-587.63,0.00031506,6]
[385824872,1758057070597,-1289.38,0.00031506,6]
[385824873,1758057070606,-400.0,0.00031506,6]
[385824874,1758057070615,-400.0,0.00031506,6]
[385824875,1758057070624,-506.39,0.00031506,6]
[385824876,1758057070634,-400.0,0.00031506,6]
[385824877,1758057070643,-462.29,0.00031506,6]
[385824878,1758057070652,-400.0,0.00031506,6]
[385824879,1758057070661,-400.0,0.00031506,6]
[385824880,1758057070671,-400.0,0.00031506,6]
[385824881,1758057070680,-400.0,0.00031506,6]
[385824882,1758057070690,-400.0,0.00031506,6]
[385824883,1758057070700,-690.9,0.00031506,6]
[385824884,1758057070710,-449.23,0.00031506,5]
[385824885,1758057070719,-1146.39,0.00031506,6]
[385824886,1758057070728,-400.0,0.00031506,6]
[385824887,1758057070738,-684.79,0.00031506,6]
[385824888,1758057070747,-537.068148,0.00031506,6]
[385824889,1758057070756,-400.0,0.00031506,6]
[385824890,1758057070765,-400.0,0.00031506,6]
[385824891,1758057070774,-400.0,0.00031506,6]
[385824892,1758057070784,-400.0,0.00031506,6]
[385824893,1758057070793,-843.08,0.00031506,6]
[385824894,1758057070803,-400.0,0.00031506,6]
[385824895,1758057070812,-400.0,0.00031506,6]
[385824896,1758057070822,-400.0,0.00031506,6]
[385824897,1758057070831,-400.0,0.00031506,6]
[385824898,1758057070840,-400.0,0.00031506,6]
[385824899,1758057070850,-400.0,0.00031506,6]
[385824900,1758057070860,-400.0,0.00031506,6]
[385824901,1758057070869,-400.0,0.00031506,6]
[385824902,1758057070879,-497.6,0.00031506,6]
[385824903,1758057070889,-400.0,0.00031506,6]
[385824904,1758057070903,-400.0,0.00031506,6]
[385824905,1758057070912,-400.0,0.00031506,6]
[385824906,1758057070921,-400.0,0.00031506,6]
[385824907,1758057070931,-400.0,0.00031506,6]
[385824908,1758057070940,-400.0,0.00031506,6]
[385824909,1758057070950,-400.0,0.00031506,6]
[385824910,1758057070959,-400.0,0.00031506,6]
[385824911,1758057070969,-2611.36,0.00031506,6]
[385824912,1758057071043,-400.0,0.00031506,6]
[385824913,1758057071053,-400.0,0.00031506,6]
[385824914,1758057071062,-400.0,0.00031506,6]
[385824915,1758057071071,-400.0,0.00031506,6]
[385824916,1758057071081,-553.62,0.00031506,6]
[385824917,1758057071090,-467.85,0.00031506,6]
[385824918,1758057071099,-400.0,0.00031506,6]
[385824919,1758057071109,-836.09,0.00031506,6]
[385824920,1758057071118,-400.0,0.00031506,6]
[385824921,1758057071127,-1289.35,0.00031506,6]
[385824922,1758057071136,-400.0,0.00031506,6]
[385824923,1758057071146,-400.0,0.00031506,6]
[385824924,1758057071155,-400.0,0.00031506,6]
[385824925,1758057071165,-400.0,0.00031506,6]
[385824926,1758057071174,-430.5,0.00031506,6]
[385824927,1758057071183,-400.0,0.00031506,6]
[385824928,1758057071193,-400.0,0.00031506,6]
[385824929,1758057071202,-400.0,0.00031506,6]
[385824930,1758057071211,-479.52,0.00031506,6]
[385824931,1758057071220,-400.0,0.00031506,6]
[385824932,1758057071230,-400.0,0.00031506,6]
[385824933,1758057071239,-441.74,0.00031506,6]
[385824934,1758057071248,-400.0,0.00031506,6]
[385824935,1758057071259,-507.91,0.00031506,6]
[385824936,1758057071268,-400.0,0.00031506,6]
[385824937,1758057071277,-400.0,0.00031506,6]
[385824938,1758057071286,-547.58,0.00031506,6]
[385824939,1758057071296,-2216.47,0.00031506,6]
[385824940,1758057071305,-400.0,0.00031506,6]
[385824941,1758057071314,-400.0,0.00031506,6]
[385824942,1758057071323,-400.0,0.00031506,6]
[385824943,1758057071332,-400.0,0.00031506,6]
[385824944,1758057071341,-500.0,0.00031518,7]
[385824945,1758057071351,-700.0,0.00031537,7]
[385824946,1758057071360,-1300.0,0.00031544,7]
[385824947,1758057071369,-11290.01160898,0.00031593,2]
[385824948,1758057071379,-153.9,0.00031622,30]
[385824949,1758057071388,-173.1,0.00031622,30]
[385824950,1758057071398,-500.0,0.00031637,7]
[385824951,1758057071407,-500.0,0.00031663,7]
[385824952,1758057071417,-4000.0,0.00031667,4]
[385824953,1758057071426,-151.0,0.00031706,5]
[385824954,1758057071436,-500.0,0.00031719,7]
[385824955,1758057071445,-500.0,0.00031756,7]
[385824956,1758057071455,-150.0,0.00031769,2]
[385824957,1758057071464,-300.0,0.00031779,10]
[385824958,1758057071473,-666.0,0.00031779,10]
[385824959,1758057071483,-839.09243417,0.00031779,2]
[385824960,1758057071492,-174.88464105,0.0003178,2]
[385824961,1758057071502,-472.24,0.0003178,6]
[385824962,1758057071511,-400.0,0.0003178,6]
[385824963,1758057071520,-400.0,0.0003178,6]
[385824964,1758057071530,-476.31248031,0.0003178,6]
[385824965,1758057071539,-400.0,0.0003178,6]
[385824966,1758057071549,-400.0,0.0003178,6]
[385824967,1758057071558,-400.0,0.0003178,6]
[385824968,1758057071567,-400.0,0.0003178,6]
[385824969,1758057071577,-400.0,0.0003178,6]
[385824970,1758057071586,-400.0,0.0003178,6]
[385824971,1758057071595,-400.0,0.0003178,6]
[385824972,1758057071604,-400.0,0.0003178,6]
[385824973,1758057071614,-400.0,0.0003178,6]
[385824974,1758057071623,-400.0,0.0003178,6]
[385824975,1758057071632,-400.0,0.0003178,6]
[385824976,1758057071641,-400.0,0.0003178,6]
[385824977,1758057071651,-400.0,0.0003178,6]
[385824978,1758057071661,-400.0,0.0003178,6]
[385824979,1758057071670,-400.0,0.0003178,6]
[385824980,1758057071681,-400.0,0.0003178,6]
[385824981,1758057071691,-400.0,0.0003178,6]
[385824982,1758057071700,-595.04,0.0003178,6]
[385824983,1758057071709,-400.0,0.0003178,6]
[385824984,1758057071718,-400.0,0.0003178,6]
[385824985,1758057071728,-817.46,0.0003178,6]
[385824986,1758057071737,-400.0,0.0003178,6]
[385824987,1758057071747,-400.0,0.0003178,6]
[385824988,1758057071756,-426.72,0.0003178,6]
[385824989,1758057071765,-400.0,0.0003178,6]
[385824990,1758057071775,-400.0,0.0003178,6]
[385824991,1758057071784,-400.0,0.0003178,6]
[385824992,1758057071793,-400.0,0.0003178,6]
[385824993,1758057071802,-400.0,0.0003178,6]
[385824994,1758057071811,-500.2047674,0.0003178,6]
[385824995,1758057071820,-489.21749881,0.0003178,6]
[385824996,1758057071829,-400.0,0.0003178,6]
[385824997,1758057071838,-400.0,0.0003178,6]
[385824998,1758057071848,-545.63669317,0.0003178,6]
[385824999,1758057071857,-400.0,0.0003178,6]
[385825000,1758057071866,-400.0,0.0003178,6]
[385825001,1758057071875,-400.0,0.0003178,6]
[385825002,1758057071884,-400.0,0.0003178,6]
[385825003,1758057071896,-466.82,0.0003178,6]
[385825004,1758057071906,-400.0,0.0003178,6]
[385825005,1758057071916,-436.46,0.0003178,6]
[385825006,1758057071926,-400.0,0.0003178,6]
[385825007,1758057071937,-400.0,0.0003178,6]
[385825008,1758057071946,-400.0,0.0003178,6]
[385825009,1758057071955,-400.0,0.0003178,6]
[385825010,1758057071965,-400.0,0.0003178,6]
[385825011,1758057071975,-400.0,0.0003178,6]
[385825012,1758057071985,-400.0,0.0003178,6]
[385825013,1758057071994,-400.0,0.0003178,6]
[385825014,1758057072003,-400.0,0.0003178,6]
[385825015,1758057072013,-400.0,0.0003178,6]
[385825016,1758057072023,-400.0,0.0003178,6]
[385825017,1758057072032,-400.0,0.0003178,6]
[385825018,1758057072042,-400.0,0.0003178,6]
[385825019,1758057072052,-444.47,0.0003178,6]
[385825020,1758057072061,-400.0,0.0003178,6]
[385825021,1758057072071,-400.0,0.0003178,6]
[385825022,1758057072080,-400.0,0.0003178,6]
[385825023,1758057072089,-400.0,0.0003178,6]
[385825024,1758057072099,-400.0,0.0003178,6]
[385825025,1758057072108,-400.0,0.0003178,6]
[385825026,1758057072118,-400.0,0.0003178,6]
[385825027,1758057072127,-400.0,0.0003178,6]
[385825028,1758057072137,-400.0,0.0003178,6]
[385825029,1758057072146,-400.0,0.0003178,6]
[385825030,1758057072156,-400.0,0.0003178,6]
[385825031,1758057072165,-400.0,0.0003178,6]
[385825032,1758057072174,-400.0,0.0003178,6]
[385825033,1758057072184,-400.0,0.0003178,6]
[385825034,1758057072193,-400.0,0.0003178,6]
[385825035,1758057072202,-538.45,0.0003178,6]
[385825036,1758057072211,-400.0,0.0003178,6]
[385825037,1758057072220,-400.0,0.0003178,6]
[385825038,1758057072229,-400.0,0.0003178,6]
[385825039,1758057072239,-219.08,0.0003178,6]
[385825040,1758057072248,-897.93,0.0003178,6]
[385825041,1758057072257,-400.39,0.0003178,6]
[385825042,1758057072267,-477.46,0.0003178,6]
[385825043,1758057072276,-400.0,0.0003178,6]
[385825044,1758057072285,-400.0,0.0003178,6]
[385825045,1758057072294,-400.0,0.0003178,6]
[385825046,1758057072304,-400.0,0.0003178,6]
[385825047,1758057072314,-400.0,0.0003178,6]
[385825048,1758057072323,-400.0,0.0003178,6]
[385825049,1758057072333,-400.0,0.0003178,6]
[385825050,1758057072342,-400.0,0.0003178,6]
[385825051,1758057072351,-400.0,0.0003178,6]
[385825052,1758057072361,-400.0,0.0003178,6]
[385825053,1758057072370,-400.0,0.0003178,6]
[385825054,1758057072379,-420.75,0.0003178,6]
[385825055,1758057072389,-400.0,0.0003178,6]
[385825056,1758057072398,-400.0,0.0003178,6]
[385825057,1758057072408,-400.0,0.0003178,6]
[385825058,1758057072418,-400.0,0.0003178,6]
[385825059,1758057072427,-2152.72,0.0003178,6]
[385825060,1758057072437,-446.8,0.0003178,6]
[385825061,1758057072446,-400.0,0.0003178,6]
[385825062,1758057072457,-400.0,0.0003178,6]
[385825063,1758057072466,-400.0,0.0003178,6]
[385825064,1758057072475,-400.0,0.0003178,6]
[385825065,1758057072485,-400.0,0.0003178,6]
[385825066,1758057072494,-400.0,0.0003178,6]
[385825067,1758057072504,-400.0,0.0003178,6]
[385825068,1758057072513,-400.0,0.0003178,6]
[385825069,1758057072523,-400.0,0.0003178,6]
[385825070,1758057072532,-245.35124263,0.0003178,6]
[385825071,1758057072541,-400.0,0.0003178,6]
[385825072,1758057072550,-400.0,0.0003178,6]
[385825073,1758057072560,-400.0,0.0003178,6]
[385825074,1758057072569,-400.0,0.0003178,6]
[385825075,1758057072579,-400.0,0.0003178,6]
[385825076,1758057072588,-400.0,0.0003178,6]
[385825077,1758057072598,-400.0,0.0003178,6]
[385825078,1758057072606,-400.0,0.0003178,6]
[385825079,1758057072616,-400.0,0.0003178,6]
[385825080,1758057072625,-400.0,0.0003178,6]
[385825081,1758057072635,-400.0,0.0003178,6]
[385825082,1758057072644,-414.26,0.0003178,6]
[385825083,1758057072653,-400.0,0.0003178,6]
[385825084,1758057072663,-633.69,0.0003178,6]
[385825085,1758057072672,-400.0,0.0003178,6]
[385825086,1758057072681,-400.0,0.0003178,6]
[385825087,1758057072691,-400.0,0.0003178,6]
[385825088,1758057072700,-400.0,0.0003178,6]
[385825089,1758057072709,-400.0,0.0003178,6]
[385825090,1758057072718,-400.0,0.0003178,6]
[385825091,1758057072728,-400.0,0.0003178,6]
[385825092,1758057072737,-400.0,0.0003178,6]
[385825093,1758057072746,-400.0,0.0003178,6]
[385825094,1758057072756,-400.0,0.0003178,6]
[385825095,1758057072765,-400.0,0.0003178,6]
[385825096,1758057072775,-400.0,0.0003178,6]
[385825097,1758057072784,-488.35,0.0003178,6]
[385825098,1758057072794,-400.0,0.0003178,6]
[385825099,1758057072803,-400.0,0.0003178,6]
[385825100,1758057072812,-400.0,0.0003178,6]
[385825101,1758057072822,-491.46570268,0.0003178,6]
[385825102,1758057072831,-400.0,0.0003178,6]
[385825103,1758057072842,-400.0,0.0003178,6]
[385825104,1758057072851,-400.0,0.0003178,6]
[385825105,1758057072861,-636.75,0.0003178,6]